[Event "84th ESP-ch 2019"]
[Site "Marbella"]
[Date "2019.11.24"]
[Round "9.13"]
[White "Tejedor Fuente, Enrique"]
[Black "Hernando Rodrigo, Julio Antonio"]
[Result "1/2-1/2"]
[ECO "C01"]
[WhiteElo "2457"]
[BlackElo "2271"]
[Annotator "ChessBase"]
[PlyCount "110"]
[EventDate "2019.11.16"]
[EventType "swiss"]
[EventCountry "ESP"]
[SourceTitle "playchess.com"]
[Source "ChessBase"]
[SourceQuality "1"]
[TimeControl "5400+30"]

1. e4 {[%emt 0:07:17]} e6 {[%emt 0:00:00]} 2. d4 {[%emt 0:00:09]} d5 {[%emt 0:00:00]} 3. exd5 {[%emt 0:00:04]} exd5 {[%emt 0:00:00]} 4. c4 {[%emt 0:00:02]} Nf6 {[%emt 0:00:23]} 5. Nc3 {[%emt 0:00:02]} Bb4 {[%emt 0:03:49]} 6. Bd3 {[%emt 0:00:02]} O-O {[%emt 0:00:37]} 7. Nge2 {[%emt 0:00:01]} h6 {[%emt 0:08:55]} 8. O-O {[%emt 0:08:51]} dxc4 {[%emt 0:03:30]} 9. Bxc4 {[%emt 0:00:04]} Nc6 {[%emt 0:00:34]} 10. a3 {[%emt 0:01:27]} Bd6 {[%emt 0:01:26]} 11. Nb5 {[%emt 0:17:11]} Bf5 {[%emt 0:05:43]} 12. Nxd6 {[%emt 0:02:31]} cxd6 {[%emt 0:08:07]} 13. Nc3 {[%emt 0:10:57]} d5 {[%emt 0:06:07]} 14. Ba2 {[%emt 0:02:26]} Qb6 {[%emt 0:02:01]} 15. Be3 {[%emt 0:03:30]} Qxb2 {[%emt 0:02:14]} 16. Nxd5 {[%emt 0:00:45]} Nxd5 {[%emt 0:00:59]} 17. Bxd5 {[%emt 0:00:02]} Rad8 {[%emt 0:00:35]} 18. Bxc6 {[%emt 0:01:07]} bxc6 {[%emt 0:00:08]} 19. Qa4 {[%emt 0:00:50]} Qb7 {[%emt 0:12:06]} 20. Rac1 {[%emt 0:02:56]} Be4 {[%emt 0:02:54]} 21. Rc5 {[%emt 0:01:09]} Rd6 {[%emt 0:00:23]} 22. Qb4 {[%emt 0:02:41]} Qd7 {[%emt 0:01:02]} 23. f3 {[%emt 0:02:11]} Bd5 {[%emt 0:00:11]} 24. Rcc1 {[%emt 0:06:21]} Rg6 {[%emt 0:05:59]} 25. Qd2 {[%emt 0:01:58]} Rb8 {[%emt 0:01:27]} 26. Kh1 {[%emt 0:01:43]} Qf5 {[%emt 0:01:25]} 27. Qc2 {[%emt 0:04:44]} Qxc2 {[%emt 0:02:00]} 28. Rxc2 {[%emt 0:00:01]} Rb3 {[%emt 0:00:09]} 29. Bc1 {[%emt 0:00:18]} Re6 {[%emt 0:01:10]} 30. Kg1 {[%emt 0:02:33]} f5 {[%emt 0:02:03]} 31. Kf2 {[%emt 0:01:04]} Rd3 {[%emt 0:00:44]} 32. Rd2 {[%emt 0:00:28]} Rxd2+ {[%emt 0:00:28]} 33. Bxd2 {[%emt 0:00:20]} Bc4 {[%emt 0:00:16]} 34. Re1 {[%emt 0:04:52]} Rxe1 {[%emt 0:00:31]} 35. Kxe1 {[%emt 0:00:55]} Kf7 {[%emt 0:00:10]} 36. Be3 {[%emt 0:00:03]} a5 {[%emt 0:08:15]} 37. Bf4 {[%emt 0:01:01]} Ke6 {[%emt 0:00:36]} 38. Be5 {[%emt 0:00:14]} g5 {[%emt 0:00:36]} 39. Bg7 {[%emt 0:01:36]} h5 {[%emt 0:00:12]} 40. Bh6 {[%emt 0:00:48]} Kd5 {[%emt 0:02:03]} 41. Bg7 {[%emt 0:06:36]} Ke6 {[%emt 0:00:17]} 42. Be5 {[%emt 0:01:48]} c5 {[%emt 0:03:40]} 43. Bc7 {[%emt 0:01:03]} cxd4 {[%emt 0:00:10]} 44. Bxa5 {[%emt 0:00:01]} Bb5 {[%emt 0:03:08]} 45. Bd2 {[%emt 0:00:56]} Kf6 {[%emt 0:01:53]} 46. Kf2 {[%emt 0:00:19]} h4 {[%emt 0:00:42]} 47. f4 {[%emt 0:00:25]} g4 {[%emt 0:00:08]} 48. Ba5 {[%emt 0:01:21]} Ke6 {[%emt 0:02:13]} 49. g3 {[%emt 0:04:24]} h3 {[%emt 0:00:25]} 50. Bb4 {[%emt 0:01:50]} Kd5 {[%emt 0:00:06]} 51. Ba5 {[%emt 0:00:23]} Ke4 {[%emt 0:01:10]} 52. Bb4 {[%emt 0:00:07]} Kd3 {[%emt 0:01:27]} 53. Ba5 {[%emt 0:00:06]} Kc2 {[%emt 0:00:58]} 54. Bb4 {[%emt 0:00:09]} Kb3 {[%emt 0:00:55]} 55. Ke1 {[%emt 0:01:08]} Kc2 1/2-1/2

[Event "84th ESP-ch 2019"]
[Site "Marbella"]
[Date "2019.11.24"]
[Round "9.14"]
[White "Suarez Uriel, Adrian"]
[Black "Martin Hernandez, Ruben"]
[Result "1-0"]
[ECO "B47"]
[WhiteElo "2389"]
[BlackElo "2206"]
[Annotator "NA"]
[PlyCount "67"]
[EventDate "2019.11.16"]
[EventType "swiss"]
[EventCountry "ESP"]
[SourceTitle "playchess.com"]
[Source "ChessBase"]
[SourceQuality "1"]
[TimeControl "5400+30"]

1. e4 {[%emt 0:00:00]} c5 {[%emt 0:00:08]} 2. Nf3 {[%emt 0:00:00]} e6 {[%emt 0:00:06]} 3. d4 {[%emt 0:00:00]} cxd4 {[%emt 0:00:06]} 4. Nxd4 {[%emt 0:00:00]} Nc6 {[%emt 0:00:09]} 5. Nc3 {[%emt 0:00:00]} Qc7 {[%emt 0:00:12]} 6. Qd3 $11 {[%emt 0:00:00]} a6 {[%emt 0:04:37]} 7. Nxc6 {[%emt 0:00:42]} bxc6 {[%emt 0:01:08]} 8. Qg3 {[%emt 0:00:05]} Qxg3 {[%emt 0:07:04]} 9. hxg3 {[%emt 0:00:28]} d5 {[%emt 0:00:37]} 10. Na4 {[%emt 0:00:53]} Rb8 {[%emt 0:07:56]} 11. exd5 {[%emt 0:01:08]} cxd5 {[%emt 0:00:46]} 12. Bf4 {[%emt 0:00:04]} Rb4 {[%emt 0:02:03]} 13. b3 {[%emt 0:00:18]} e5 {[%emt 0:07:53]} 14. Bd2 {[%emt 0:00:07]} Rb8 {[%emt 0:00:43]} 15. Ba5 {[%emt 0:15:42]} f6 {[%emt 0:12:34]} 16. c4 {[%emt 0:06:46]} Ne7 {[%emt 0:04:36]} 17. Bc7 {[%emt 0:06:05]} Rb7 {[%emt 0:04:59]} 18. Bd6 {[%emt 0:00:02]} d4 {[%emt 0:00:48]} 19. c5 {[%emt 0:03:35]} Nf5 {[%emt 0:02:40]} 20. Bxf8 {[%emt 0:01:07]} Kxf8 {[%emt 0:00:06]} 21. Bxa6 {[%emt 0:00:11]} Rc7 {[%emt 0:00:06]} 22. Bd3 {[%emt 0:01:43]} e4 {[%emt 0:00:48]} 23. Bc4 {[%emt 0:03:48]} Ke7 {[%emt 0:04:54]} 24. O-O-O {[%emt 0:00:16]} Bd7 {[%emt 0:00:20]} 25. g4 {[%emt 0:01:00]} Bxa4 {[%emt 0:09:09]} 26. gxf5 {[%emt 0:00:09]} Rxc5 {[%emt 0:00:25]} 27. Rxd4 {[%emt 0:00:10]} Bc6 {[%emt 0:00:17]} 28. g4 {[%emt 0:02:37]} h6 {[%emt 0:00:24]} 29. Kb2 {[%emt 0:01:18]} Rb8 {[%emt 0:00:20]} 30. Re1 {[%emt 0:02:29]} h5 {[%emt 0:00:18]} 31. f3 {[%emt 0:02:40]} Re5 {[%emt 0:00:32]} 32. fxe4 {[%emt 0:01:02]} h4 {[%emt 0:00:02]} 33. Re3 {[%emt 0:00:50]} Rh8 {[%emt 0:00:51]} 34. Bf1 {[%emt 0:00:07]} 1-0

[Event "84th ESP-ch 2019"]
[Site "Marbella"]
[Date "2019.11.24"]
[Round "9.15"]
[White "Calzetta Ruiz, Monica"]
[Black "Alvarez Fernandez, Enrique"]
[Result "0-1"]
[ECO "A20"]
[WhiteElo "2251"]
[BlackElo "2349"]
[Annotator "NA"]
[PlyCount "154"]
[EventDate "2019.11.16"]
[EventType "swiss"]
[EventCountry "ESP"]
[SourceTitle "playchess.com"]
[Source "ChessBase"]
[SourceQuality "1"]
[TimeControl "5400+30"]

1. c4 {[%emt 0:04:06]} e5 {[%emt 0:00:00]} 2. g3 {[%emt 0:00:11]} Nf6 {[%emt 0:00:15]} 3. Bg2 {[%emt 0:00:06]} c6 {[%emt 0:00:26]} 4. d4 {[%emt 0:03:04]} e4 {[%emt 0:03:23]} 5. Nc3 {[%emt 0:04:47]} Bb4 {[%emt 0:00:50]} 6. Qb3 {[%emt 0:05:15]} Bxc3+ {[%emt 0:01:41]} 7. bxc3 {[%emt 0:00:20]} O-O {[%emt 0:00:26]} 8. h4 {[%emt 0:08:04]} d5 {[%emt 0:06:27]} 9. cxd5 {[%emt 0:17:31]} cxd5 {[%emt 0:00:18]} 10. Bg5 {[%emt 0:02:26]} Nbd7 {[%emt 0:02:10]} 11. Nh3 {[%emt 0:01:10]} Qa5 {[%emt 0:17:20]} 12. O-O {[%emt 0:00:47]} h6 {[%emt 0:01:41]} 13. Bf4 {[%emt 0:08:46]} Qa6 {[%emt 0:07:20]} 14. f3 {[%emt 0:08:56]} Nb6 {[%emt 0:07:45]} 15. Nf2 {[%emt 0:01:55]} e3 {[%emt 0:06:08]} 16. Bxe3 {[%emt 0:03:26]} Nh5 {[%emt 0:12:15]} 17. g4 {[%emt 0:12:06]} Ng3 {[%emt 0:02:45]} 18. Rfe1 {[%emt 0:00:07]} Nxe2+ {[%emt 0:07:23]} 19. Kh2 {[%emt 0:00:04]} Re8 {[%emt 0:01:40]} 20. Bf4 {[%emt 0:06:36]} Bxg4 {[%emt 0:07:04]} 21. Rxe2 {[%emt 0:00:03]} Qxe2 {[%emt 0:00:42]} 22. Nxg4 {[%emt 0:00:03]} h5 {[%emt 0:01:11]} 23. Ne5 {[%emt 0:02:28]} f6 {[%emt 0:00:22]} 24. Nd7 {[%emt 0:02:35]} Nxd7 {[%emt 0:01:00]} 25. Qxd5+ {[%emt 0:00:02]} Qe6 {[%emt 0:00:09]} 26. Qxb7 {[%emt 0:00:50]} Nb6 {[%emt 0:01:48]} 27. Bg3 {[%emt 0:03:44]} Re7 {[%emt 0:03:35]} 28. Qe4 {[%emt 0:00:05]} Qf7 {[%emt 0:01:30]} 29. Qc2 {[%emt 0:01:11]} Rae8 {[%emt 0:00:37]} 30. Bf1 {[%emt 0:00:02]} Qd5 {[%emt 0:01:14]} 31. Qb3 {[%emt 0:00:54]} Rc8 {[%emt 0:02:15]} 32. c4 {[%emt 0:01:59]} Qxd4 {[%emt 0:02:49]} 33. c5+ {[%emt 0:01:43]} Kh8 {[%emt 0:00:26]} 34. cxb6 {[%emt 0:00:41]} Qxa1 {[%emt 0:00:51]} 35. b7 {[%emt 0:00:01]} Rb8 {[%emt 0:01:09]} 36. Bxb8 {[%emt 0:00:04]} Qxf1 {[%emt 0:00:05]} 37. Be5 {[%emt 0:00:55]} Qe2+ {[%emt 0:00:40]} 38. Kg1 {[%emt 0:00:09]} Qe1+ {[%emt 0:00:46]} 39. Kg2 {[%emt 0:00:02]} Qe2+ {[%emt 0:00:08]} 40. Kg1 {[%emt 0:00:01]} Rxb7 {[%emt 0:00:26]} 41. Qxb7 {[%emt 0:00:03]} Qxe5 {[%emt 0:00:14]} 42. Qxa7 {[%emt 0:00:27]} Qg3+ {[%emt 0:00:07]} 43. Kf1 {[%emt 0:01:02]} Qxf3+ {[%emt 0:00:06]} 44. Qf2 {[%emt 0:00:21]} Qa3 {[%emt 0:00:47]} 45. Qf5 {[%emt 0:00:38]} Qc1+ {[%emt 0:00:55]} 46. Kg2 {[%emt 0:00:12]} Qd2+ {[%emt 0:00:43]} 47. Kg3 {[%emt 0:00:13]} Qc3+ {[%emt 0:00:34]} 48. Qf3 {[%emt 0:00:22]} Qa5 {[%emt 0:00:39]} 49. a4 {[%emt 0:00:13]} Qxa4 {[%emt 0:00:18]} 50. Qxh5+ {[%emt 0:00:06]} Kg8 {[%emt 0:00:02]} 51. Qd5+ {[%emt 0:00:14]} Kf8 {[%emt 0:00:02]} 52. Qc5+ {[%emt 0:01:26]} Ke8 {[%emt 0:00:52]} 53. Qh5+ {[%emt 0:00:30]} Ke7 {[%emt 0:00:41]} 54. Qc5+ {[%emt 0:00:05]} Ke6 {[%emt 0:00:48]} 55. h5 {[%emt 0:02:32]} Qb3+ {[%emt 0:00:23]} 56. Kf2 {[%emt 0:00:19]} Qb2+ {[%emt 0:00:17]} 57. Kf3 {[%emt 0:00:59]} Qe5 {[%emt 0:00:56]} 58. Qc8+ {[%emt 0:00:56]} Ke7 {[%emt 0:00:48]} 59. Qg4 {[%emt 0:00:16]} Qd5+ {[%emt 0:00:19]} 60. Kf2 {[%emt 0:00:12]} Qc5+ {[%emt 0:00:16]} 61. Kf1 {[%emt 0:00:17]} Qc1+ {[%emt 0:00:09]} 62. Kf2 {[%emt 0:00:12]} Qd2+ {[%emt 0:00:07]} 63. Kf1 {[%emt 0:00:10]} Qd3+ {[%emt 0:00:04]} 64. Kf2 {[%emt 0:00:10]} Kf7 {[%emt 0:00:14]} 65. Ke1 {[%emt 0:01:02]} Qe3+ {[%emt 0:00:21]} 66. Kf1 {[%emt 0:00:05]} Qd3+ {[%emt 0:00:04]} 67. Ke1 {[%emt 0:00:06]} Qc3+ {[%emt 0:00:36]} 68. Kf1 {[%emt 0:00:12]} Qa1+ {[%emt 0:00:39]} 69. Kf2 {[%emt 0:00:07]} Qa2+ {[%emt 0:00:09]} 70. Kf1 {[%emt 0:00:07]} Qe6 {[%emt 0:00:13]} 71. Qg6+ {[%emt 0:00:25]} Kf8 {[%emt 0:00:13]} 72. Qd3 {[%emt 0:01:30]} Qe5 {[%emt 0:01:48]} 73. Qf3 {[%emt 0:00:21]} Kg8 {[%emt 0:00:31]} 74. Kf2 {[%emt 0:01:16]} Kh7 {[%emt 0:00:20]} 75. Qd3+ {[%emt 0:00:03]} f5 {[%emt 0:00:18]} 76. Qf3 {[%emt 0:02:16]} Kh6 {[%emt 0:00:55]} 77. Kg2 {[%emt 0:00:47]} Qe4 {[%emt 0:00:27]} 0-1

[Event "84th ESP-ch 2019"]
[Site "Marbella"]
[Date "2019.11.24"]
[Round "9.16"]
[White "Martinez Piqueras, Carlos"]
[Black "Pazos Porta, Antonio"]
[Result "0-1"]
[ECO "A53"]
[WhiteElo "2206"]
[BlackElo "2345"]
[Annotator "NA"]
[PlyCount "70"]
[EventDate "2019.11.16"]
[EventType "swiss"]
[EventCountry "ESP"]
[SourceTitle "playchess.com"]
[Source "ChessBase"]
[SourceQuality "1"]
[TimeControl "5400+30"]

1. d4 {[%emt 0:02:49]} Nf6 {[%emt 0:04:36]} 2. c4 {[%emt 0:00:21]} d6 {[%emt 0:00:42]} 3. Nc3 {[%emt 0:01:28]} e5 {[%emt 0:05:42]} 4. e4 {[%emt 0:07:11]} exd4 {[%emt 0:07:10]} 5. Qxd4 {[%emt 0:02:07]} Nc6 {[%emt 0:00:51]} 6. Qd2 {[%emt 0:01:05]} Be7 {[%emt 0:06:47]} 7. b3 {[%emt 0:00:42]} O-O {[%emt 0:00:38]} 8. Bb2 {[%emt 0:00:56]} Re8 {[%emt 0:21:15]} 9. Bd3 {[%emt 0:09:26]} Nd7 {[%emt 0:17:36]} 10. Nge2 {[%emt 0:11:40]} Nc5 {[%emt 0:04:51]} 11. Bc2 {[%emt 0:00:52]} a5 {[%emt 0:03:28]} 12. Nd5 {[%emt 0:06:50]} Bg5 {[%emt 0:06:40]} 13. f4 {[%emt 0:23:00]} Bh6 {[%emt 0:00:43]} 14. O-O {[%emt 0:00:12]} Nxe4 {[%emt 0:01:46]} 15. Bxe4 {[%emt 0:00:32]} Rxe4 {[%emt 0:00:02]} 16. Ng3 {[%emt 0:00:21]} Re6 {[%emt 0:03:22]} 17. Nf5 {[%emt 0:07:43]} Rg6 {[%emt 0:00:18]} 18. Nxh6+ {[%emt 0:00:44]} Rxh6 {[%emt 0:00:02]} 19. Qc3 {[%emt 0:02:46]} f6 {[%emt 0:00:51]} 20. Rae1 {[%emt 0:01:12]} Bf5 {[%emt 0:04:23]} 21. Rf2 {[%emt 0:12:00]} Qd7 {[%emt 0:00:26]} 22. Rfe2 {[%emt 0:00:39]} Rg6 {[%emt 0:00:34]} 23. Re7 {[%emt 0:02:56]} Nxe7 {[%emt 0:00:30]} 24. Rxe7 {[%emt 0:00:02]} Qd8 {[%emt 0:00:27]} 25. Rxc7 {[%emt 0:01:03]} Be4 {[%emt 0:01:20]} 26. Ne7+ {[%emt 0:01:51]} Kf7 {[%emt 0:00:01]} 27. Nd5+ {[%emt 0:00:50]} Kf8 {[%emt 0:00:13]} 28. g3 {[%emt 0:00:34]} h5 {[%emt 0:04:05]} 29. Rxb7 {[%emt 0:01:25]} Bxd5 {[%emt 0:00:38]} 30. cxd5 {[%emt 0:00:05]} h4 {[%emt 0:00:34]} 31. Ba3 {[%emt 0:01:23]} hxg3 {[%emt 0:00:12]} 32. hxg3 {[%emt 0:00:01]} Kg8 {[%emt 0:01:38]} 33. Rc7 {[%emt 0:00:41]} Qe8 {[%emt 0:01:16]} 34. Kf2 {[%emt 0:01:00]} Rh6 {[%emt 0:00:52]} 35. Bb2 {[%emt 0:00:29]} Qe4 {[%emt 0:00:51]} 0-1

[Event "84th ESP-ch 2019"]
[Site "Marbella"]
[Date "2019.11.24"]
[Round "9.17"]
[White "Berrocal Ruiz, Valentin"]
[Black "Perez Garcia, Alejandro"]
[Result "1/2-1/2"]
[ECO "B13"]
[WhiteElo "2143"]
[BlackElo "2343"]
[Annotator "NA"]
[PlyCount "98"]
[EventDate "2019.11.16"]
[EventType "swiss"]
[EventCountry "ESP"]
[SourceTitle "playchess.com"]
[Source "ChessBase"]
[SourceQuality "1"]
[TimeControl "5400+30"]

1. e4 {[%emt 0:00:00]} c6 {[%emt 0:00:00]} 2. d4 {[%emt 0:00:00]} d5 {[%emt 0:00:00]} 3. exd5 {[%emt 0:00:00]} cxd5 {[%emt 0:00:00]} 4. Bd3 {[%emt 0:00:00]} g6 {[%emt 0:00:04]} 5. c3 $11 {[%emt 0:00:41]} Bf5 {[%emt 0:01:09]} 6. Bxf5 {[%emt 0:03:24]} gxf5 {[%emt 0:00:05]} 7. Bg5 {[%emt 0:00:15]} Nc6 {[%emt 0:09:06]} 8. Nd2 {[%emt 0:04:28]} Qd7 {[%emt 0:07:29]} 9. Nb3 {[%emt 0:04:43]} b6 {[%emt 0:16:25]} 10. Nh3 {[%emt 0:08:17]} e6 {[%emt 0:14:01]} 11. Qe2 {[%emt 0:08:39]} Bd6 {[%emt 0:06:58]} 12. Bf4 {[%emt 0:20:58]} Nf6 {[%emt 0:05:26]} 13. Nc1 {[%emt 0:07:20]} Rg8 {[%emt 0:04:18]} 14. g3 {[%emt 0:02:43]} Rc8 {[%emt 0:10:21]} 15. Nd3 {[%emt 0:00:25]} Ne7 {[%emt 0:03:50]} 16. Bg5 {[%emt 0:10:16]} Ne4 {[%emt 0:03:31]} 17. Be3 {[%emt 0:04:10]} Qb5 {[%emt 0:03:01]} 18. Rg1 {[%emt 0:04:25]} a5 19. f3 {[%emt 0:01:11]} Nf6 {[%emt 0:04:07]} 20. Bf4 {[%emt 0:04:04]} Bxf4 {[%emt 0:01:55]} 21. Nhxf4 {[%emt 0:00:12]} Ng6 {[%emt 0:00:58]} 22. Kf2 {[%emt 0:02:06]} Nxf4 {[%emt 0:00:34]} 23. Nxf4 {[%emt 0:00:07]} Qxe2+ {[%emt 0:00:42]} 24. Kxe2 {[%emt 0:00:20]} Ke7 {[%emt 0:01:08]} 25. Kf2 {[%emt 0:00:40]} Kd6 {[%emt 0:00:44]} 26. Rge1 {[%emt 0:00:18]} b5 {[%emt 0:02:27]} 27. Nd3 {[%emt 0:00:07]} Nd7 {[%emt 0:01:58]} 28. a3 {[%emt 0:00:41]} Rc4 {[%emt 0:00:59]} 29. Rac1 {[%emt 0:04:18]} Rc7 {[%emt 0:01:50]} 30. Ke3 {[%emt 0:00:27]} Nb6 {[%emt 0:01:00]} 31. Re2 {[%emt 0:00:58]} Nc4+ {[%emt 0:00:43]} 32. Kf2 {[%emt 0:00:07]} a4 {[%emt 0:00:35]} 33. Ne5 {[%emt 0:00:49]} f6 {[%emt 0:00:32]} 34. Nd3 {[%emt 0:00:25]} e5 {[%emt 0:00:11]} 35. dxe5+ {[%emt 0:00:51]} fxe5 {[%emt 0:00:04]} 36. Rd1 {[%emt 0:00:12]} e4 {[%emt 0:00:29]} 37. Nb4 {[%emt 0:01:18]} e3+ {[%emt 0:01:00]} 38. Kg2 {[%emt 0:00:17]} Rc5 {[%emt 0:00:42]} 39. Nd3 {[%emt 0:00:09]} Rc7 {[%emt 0:00:32]} 40. Nf4 {[%emt 0:00:06]} Rc5 {[%emt 0:00:29]} 41. Nd3 {[%emt 0:00:09]} Rcc8 {[%emt 0:00:29]} 42. Nf4 {[%emt 0:00:07]} Rc5 {[%emt 0:00:34]} 43. Nd3 {[%emt 0:00:13]} Rcc8 {[%emt 0:00:29]} 44. Nf4 {[%emt 0:00:06]} Rgd8 {[%emt 0:00:30]} 45. Rxd5+ {[%emt 0:02:19]} Kc6 {[%emt 0:00:03]} 46. Rd4 {[%emt 0:01:21]} Rxd4 {[%emt 0:00:51]} 47. cxd4 {[%emt 0:00:06]} Rb8 {[%emt 0:00:20]} 48. Rc2 {[%emt 0:00:40]} Rd8 {[%emt 0:00:28]} 49. d5+ {[%emt 0:00:10]} Kd6 {[%emt 0:00:38]} 1/2-1/2

[Event "84th ESP-ch 2019"]
[Site "Marbella"]
[Date "2019.11.24"]
[Round "9.18"]
[White "Sanjuan Garcia, Miguel"]
[Black "Guerra Rivera, Salvador"]
[Result "1-0"]
[ECO "C41"]
[WhiteElo "2021"]
[BlackElo "2334"]
[Annotator "NA"]
[PlyCount "83"]
[EventDate "2019.11.16"]
[EventType "swiss"]
[EventCountry "ESP"]
[SourceTitle "playchess.com"]
[Source "ChessBase"]
[SourceQuality "1"]
[TimeControl "5400+30"]

1. e4 {[%emt 0:00:00]} e5 {[%emt 0:00:00]} 2. Nf3 {[%emt 0:01:24]} d6 {[%emt 0:00:08]} 3. Bc4 {[%emt 0:00:37]} Be7 {[%emt 0:00:10]} 4. c3 {[%emt 0:00:30]} Nf6 {[%emt 0:00:41]} 5. d3 {[%emt 0:00:24]} O-O {[%emt 0:02:42]} 6. Nbd2 {[%emt 0:00:11]} c6 {[%emt 0:00:55]} 7. Bb3 {[%emt 0:00:59]} a5 {[%emt 0:10:16]} 8. a4 {[%emt 0:00:20]} Nbd7 {[%emt 0:00:21]} 9. Qe2 {[%emt 0:02:10]} Nc5 {[%emt 0:00:47]} 10. Bc2 {[%emt 0:00:12]} Re8 {[%emt 0:06:32]} 11. O-O {[%emt 0:00:14]} Bf8 {[%emt 0:00:31]} 12. Nc4 {[%emt 0:03:14]} h6 {[%emt 0:02:33]} 13. Be3 {[%emt 0:05:43]} Qc7 {[%emt 0:02:30]} 14. b4 {[%emt 0:08:24]} axb4 {[%emt 0:00:14]} 15. cxb4 {[%emt 0:00:01]} Ncd7 {[%emt 0:02:45]} 16. a5 {[%emt 0:01:29]} d5 {[%emt 0:11:27]} 17. Nb6 {[%emt 0:00:17]} Ra6 {[%emt 0:00:15]} 18. Nxc8 {[%emt 0:16:11]} Qxc8 {[%emt 0:01:24]} 19. Rab1 {[%emt 0:03:58]} d4 {[%emt 0:06:12]} 20. Bd2 {[%emt 0:00:02]} b5 {[%emt 0:00:07]} 21. Rfc1 {[%emt 0:07:14]} Ra7 {[%emt 0:01:06]} 22. Bb3 {[%emt 0:07:13]} Nb8 {[%emt 0:00:13]} 23. Nh4 {[%emt 0:04:36]} Kh7 {[%emt 0:01:07]} 24. f4 {[%emt 0:03:34]} exf4 {[%emt 0:01:56]} 25. Qf2 {[%emt 0:01:39]} Na6 {[%emt 0:17:37]} 26. Ba2 {[%emt 0:00:27]} Ng4 {[%emt 0:02:43]} 27. Qxf4 {[%emt 0:04:06]} Ne5 {[%emt 0:00:36]} 28. Qg3 {[%emt 0:01:35]} g6 {[%emt 0:01:15]} 29. Nf3 {[%emt 0:00:46]} Nxd3 {[%emt 0:06:55]} 30. Ng5+ {[%emt 0:00:01]} hxg5 {[%emt 0:00:07]} 31. Qxd3 {[%emt 0:00:06]} Rd7 {[%emt 0:01:58]} 32. Bxg5 {[%emt 0:03:06]} Bg7 {[%emt 0:01:27]} 33. Rf1 {[%emt 0:05:12]} Qc7 {[%emt 0:00:15]} 34. Qh3+ {[%emt 0:04:14]} Kg8 {[%emt 0:00:02]} 35. Rf6 {[%emt 0:01:29]} Rxe4 {[%emt 0:17:18]} 36. Rbf1 {[%emt 0:05:25]} Re3 {[%emt 0:01:32]} 37. Rxf7 {[%emt 0:07:25]} Rd5 {[%emt 0:01:13]} 38. Rxc7 {[%emt 0:00:47]} Rxh3 {[%emt 0:00:05]} 39. Bxd5+ {[%emt 0:00:11]} cxd5 {[%emt 0:00:18]} 40. Rc8+ {[%emt 0:00:09]} Kh7 {[%emt 0:00:39]} 41. gxh3 {[%emt 0:00:12]} d3 {[%emt 0:00:01]} 42. Rf7 {[%emt 0:00:47]} 1-0

[Event "84th ESP-ch 2019"]
[Site "Marbella"]
[Date "2019.11.24"]
[Round "9.19"]
[White "Romero Calduch, Sergio"]
[Black "Zurano Lopez, Pedro"]
[Result "1-0"]
[ECO "A46"]
[WhiteElo "2130"]
[BlackElo "2292"]
[Annotator "NA"]
[PlyCount "123"]
[EventDate "2019.11.16"]
[EventType "swiss"]
[EventCountry "ESP"]
[SourceTitle "playchess.com"]
[Source "ChessBase"]
[SourceQuality "1"]
[TimeControl "5400+30"]

1. d4 {[%emt 0:00:00]} Nf6 {[%emt 0:00:00]} 2. Nf3 {[%emt 0:00:00]} e6 {[%emt 0:00:00]} 3. c4 {[%emt 0:00:02]} d5 {[%emt 0:00:03]} 4. g3 {[%emt 0:03:08]} dxc4 {[%emt 0:00:48]} 5. Qc2 {[%emt 0:03:09]} Nc6 {[%emt 0:05:55]} 6. Qxc4 {[%emt 0:02:41]} Nd5 {[%emt 0:04:01]} 7. a3 {[%emt 0:02:33]} Nb6 {[%emt 0:00:52]} 8. Qd3 {[%emt 0:00:43]} e5 {[%emt 0:00:17]} 9. dxe5 {[%emt 0:31:21]} Qxd3 {[%emt 0:02:33]} 10. exd3 {[%emt 0:00:05]} Bg4 {[%emt 0:00:46]} 11. Nbd2 {[%emt 0:00:14]} O-O-O {[%emt 0:01:49]} 12. h3 {[%emt 0:03:18]} Bf5 {[%emt 0:03:21]} 13. Ne4 {[%emt 0:00:14]} Be7 {[%emt 0:02:55]} 14. Bd2 {[%emt 0:08:39]} Rhe8 {[%emt 0:09:52]} 15. O-O-O {[%emt 0:02:50]} Bxe4 {[%emt 0:05:11]} 16. dxe4 {[%emt 0:00:11]} Bc5 {[%emt 0:00:35]} 17. Bb5 {[%emt 0:09:56]} Bxf2 {[%emt 0:01:10]} 18. Bf4 {[%emt 0:00:12]} h6 {[%emt 0:02:24]} 19. h4 {[%emt 0:00:10]} Re6 {[%emt 0:04:42]} 20. Rxd8+ {[%emt 0:02:31]} Kxd8 {[%emt 0:02:49]} 21. Rd1+ {[%emt 0:00:25]} Nd7 {[%emt 0:02:03]} 22. Bf1 {[%emt 0:07:00]} Re7 {[%emt 0:02:22]} 23. Bh3 {[%emt 0:00:46]} Bb6 {[%emt 0:00:41]} 24. h5 {[%emt 0:01:27]} Ke8 {[%emt 0:05:00]} 25. Nh4 {[%emt 0:00:09]} Nd4 {[%emt 0:00:19]} 26. Nf5 {[%emt 0:04:24]} Nxf5 {[%emt 0:00:41]} 27. exf5 {[%emt 0:00:07]} Nxe5 {[%emt 0:04:27]} 28. f6 {[%emt 0:00:13]} gxf6 {[%emt 0:00:48]} 29. Bxh6 {[%emt 0:00:04]} Nf3 {[%emt 0:02:25]} 30. Bf4 {[%emt 0:01:11]} Be3+ {[%emt 0:17:30]} 31. Bxe3 {[%emt 0:02:38]} Rxe3 {[%emt 0:00:05]} 32. h6 {[%emt 0:00:12]} Ng5 {[%emt 0:01:10]} 33. Bf5 {[%emt 0:00:11]} Rxg3 {[%emt 0:01:29]} 34. h7 {[%emt 0:00:22]} Nxh7 {[%emt 0:00:13]} 35. Bxh7 {[%emt 0:00:02]} Rg5 {[%emt 0:00:32]} 36. Be4 {[%emt 0:00:57]} c6 {[%emt 0:00:14]} 37. Rf1 {[%emt 0:02:10]} Ke7 {[%emt 0:00:30]} 38. Bf5 {[%emt 0:00:08]} b6 {[%emt 0:00:35]} 39. Be4 {[%emt 0:01:53]} c5 {[%emt 0:00:35]} 40. Bd3 {[%emt 0:00:20]} c4 {[%emt 0:01:17]} 41. Bc2 {[%emt 0:00:27]} b5 {[%emt 0:01:36]} 42. a4 {[%emt 0:05:44]} a6 {[%emt 0:02:09]} 43. a5 {[%emt 0:01:54]} b4 {[%emt 0:04:16]} 44. Rf5 {[%emt 0:00:51]} Rg1+ {[%emt 0:04:36]} 45. Bd1 {[%emt 0:00:08]} c3 {[%emt 0:01:27]} 46. b3 {[%emt 0:03:32]} Rg2 {[%emt 0:01:41]} 47. Rf4 {[%emt 0:00:20]} Ra2 {[%emt 0:00:44]} 48. Rxb4 {[%emt 0:00:05]} Rxa5 {[%emt 0:00:05]} 49. Kc2 {[%emt 0:01:12]} f5 {[%emt 0:01:33]} 50. Kxc3 {[%emt 0:00:37]} Kd6 {[%emt 0:00:13]} 51. Be2 {[%emt 0:00:28]} Rc5+ {[%emt 0:00:30]} 52. Rc4 {[%emt 0:00:31]} Ra5 {[%emt 0:00:24]} 53. Ra4 {[%emt 0:01:35]} Rc5+ {[%emt 0:00:44]} 54. Kb4 {[%emt 0:00:12]} Rc2 {[%emt 0:00:47]} 55. Rxa6+ {[%emt 0:00:09]} Ke5 {[%emt 0:00:34]} 56. Ra5+ {[%emt 0:00:38]} Ke4 {[%emt 0:00:10]} 57. Bc4 {[%emt 0:01:04]} f6 {[%emt 0:00:31]} 58. Ra6 {[%emt 0:00:18]} f4 {[%emt 0:00:34]} 59. Rxf6 {[%emt 0:00:17]} f3 {[%emt 0:00:10]} 60. Kc5 {[%emt 0:00:27]} f2 {[%emt 0:01:19]} 61. b4 {[%emt 0:00:19]} Ke5 {[%emt 0:00:45]} 62. Rf8 {[%emt 0:00:19] Kd5+} 1-0